Cogmind - Beta 12 @@@ ROGUE MODE // 2023.10.27 @ 13:45:52 Player: wchar_t Result: Heading to fleet! Performance ------------- Evolutions (9) 4500 Regions Visited (18) 3600 Robots Destroyed (269) 1345 Value Destroyed (15230) 15230 Prototype IDs (10) 200 Alien Tech Used (11) 2200 Bonus (33958) 33958 TOTAL SCORE: 61033 Bonus ------- Triggered High Security 500 Triggered Max Security 1000 High Alert Combat Kills 19275 Follower Combat Kills 180 Entered DSFs 1000 Used Core Reset Matrix 3000 Integrated Exoskeleton 5000 Win 3000 Win Speed 1634 Friendly Fire -631 Cogmind --------- Core Integrity 274/1600 Matter 300/300 Energy 191/200 System Corruption 13% Temperature Cool (0) Movement Walking (30) Location To Fleet Rendezvous Parts ------- > --- POWER (1) -------- (None) > --- PROPULSION (3) --- Sigix Exoskeleton > --- UTILITY (5) ------ Medium Storage Unit Experimental Core Analyzer Experimental Core Analyzer Microwarp Drive > --- WEAPON (2) ------- (None) > --- INVENTORY (14) --- Light Quantum Reactor Experimental Core Analyzer Advanced Reaction Control System Graphene Brace Point Defense System Transdimensional Reconstructor Transdimensional Reconstructor Core Cannon Sigix Shearcannon Fusion Bomb Launcher Plasma Lance Peak State ------------ > --- POWER ------------ Light Antimatter Reactor > --- PROPULSION ------- Sigix Exoskeleton > --- UTILITY ---------- Medium Storage Unit Experimental Core Analyzer Experimental Core Analyzer Microwarp Drive > --- WEAPON ----------- Sigix Shearcannon > --- INVENTORY -------- Light Quantum Reactor Experimental Core Analyzer Advanced Reaction Control System Graphene Brace Point Defense System Transdimensional Reconstructor Transdimensional Reconstructor Core Cannon Fusion Bomb Launcher Plasma Lance [Rating: 248] Favorites ----------- Power Light Antimatter Reactor Engine Light Ion Engine Power Core Micro Fission Core Reactor Light Antimatter Reactor Propulsion Surge Thruster Leg Sigix Exoskeleton Hover Unit Improved Antigrav System Flight Unit Surge Thruster Utility Medium Storage Unit Device Structural Scanner Storage Medium Storage Unit Processor Enhanced Optical Array Hackware Hacking Suite Protection Improved Weapon Shielding Artifact Microwarp Drive Weapon Mining Claw Energy Gun Sigix Sheargun Energy Cannon Sigix Shearcannon Launcher Fusion Bomb Launcher Impact Weapon Hammer Slashing Weapon Mining Claw Piercing Weapon Spear Build | -11 -10 -9 -9 -8 -7 -7 -6 -5 -4 -4 -4 -3 -3 -2 -2 -2 -1 -1 ------- Run | Jun Mat Mat Min Mat Fac DSF Fac Fac Fac Was Fac Res DSF Res Qua Sec Acc Com Slots Evolved 18 | . . 2 . 2 2 . 2 2 2 . . 2 . 2 . . 2 . Power 1 | . . . . . . . . . . . . . . 1 . . . . Propulsion 7 | . . 1 . 1 1 . 1 1 1 . . 1 . . . . . . Utility 10 | . . 1 . 1 1 . 1 1 1 . . 1 . 1 . . 2 . Weapon . | . . . . . . . . . . . . . . . . . . . Parts Attached 150 | . 3 4 . 14 1 12 12 7 5 2 10 1 3 2 7 34 7 26 Power 15 | . . . . 2 . 2 . 1 . . 1 . . 1 3 5 . . Engine 2 | . . . . 2 . . . . . . . . . . . . . . Core 6 | . . . . . . 2 . 1 . . 1 . . . . 2 . . Reactor 7 | . . . . . . . . . . . . . . 1 3 3 . . Propulsion 38 | . 2 2 . 7 . 4 4 2 2 2 3 . . . 1 9 . . Treads . | . . . . . . . . . . . . . . . . . . . Leg . | . . . . . . . . . . . . . . . . . . . Wheel . | . . . . . . . . . . . . . . . . . . . Hover 4 | . . . . . . . 2 . 1 1 . . . . . . . . Flight 34 | . 2 2 . 7 . 4 2 2 1 1 3 . . . 1 9 . . Utility 67 | . . . . 3 . 5 6 4 3 . 2 1 3 1 2 11 5 21 Device 36 | . . . . . . 3 3 1 1 . 1 . 2 1 1 8 4 11 Storage 3 | . . . . . . . . 1 . . 1 . . . . . . 1 Processor 17 | . . . . 1 . 2 2 1 2 . . . . . 1 1 1 6 Hackware 3 | . . . . 1 . . . 1 . . . 1 . . . . . . Protection 3 | . . . . 1 . . 1 . . . . . 1 . . . . . Artifact 5 | . . . . . . . . . . . . . . . . 2 . 3 Weapon 30 | . 1 2 . 2 1 1 2 . . . 4 . . . 1 9 2 5 Energy Gun . | . . . . . . . . . . . . . . . . . . . Energy Cannon 5 | . . . . . . . . . . . . . . . . 2 . 3 Ballistic Gun . | . . . . . . . . . . . . . . . . . . . Ballistic Cannon . | . . . . . . . . . . . . . . . . . . . Launcher 9 | . 1 1 . 2 . . 1 . . . 2 . . . . . 1 1 Special Weapon . | . . . . . . . . . . . . . . . . . . . Impact Weapon 1 | . . 1 . . . . . . . . . . . . . . . . Slashing Weapon 2 | . . . . . 1 1 . . . . . . . . . . . . Piercing Weapon 13 | . . . . . . . 1 . . . 2 . . . 1 7 1 1 Special Melee Weapon . | . . . . . . . . . . . . . . . . . . . Unidentified Prototypes 7 | . . . . 1 . . 2 . . . . . . . 1 2 . 1 Parts Lost 41 | . . . . 8 . 7 1 1 1 . 1 . 4 . 9 8 . 1 Power 5 | . . . . 1 . . . . . . . . 1 . 1 1 . 1 Propulsion 24 | . . . . 5 . 4 1 1 1 . 1 . 1 . 5 5 . . Utility 10 | . . . . 1 . 3 . . . . . . 2 . 2 2 . . Weapon 2 | . . . . 1 . . . . . . . . . . 1 . . . Highest Loss Streak 7 | . . . . 4 . 7 1 1 1 . 1 . 2 . 4 5 . 1 To Critical Strikes . | . . . . . . . . . . . . . . . . . . . Average Slot Usage (%) 70 | . 16 45 55 57 53 74 86 90 83 85 87 84 79 71 69 58 51 72 Core 1 | . . . . . . 1 6 5 5 5 5 4 4 . . 1 . . Reactor 3 | . . . . . . . . . . . . . . 3 3 2 9 8 Leg 3 | . . . . . . . . . . . . . . . . 2 9 9 Flight 14 | . 12 29 33 31 30 25 27 30 23 22 29 28 23 21 17 13 . . Device 11 | . . . . . . 17 21 9 10 10 9 9 4 7 8 7 9 16 Storage 4 | . . . . . . . . 1 5 5 5 4 4 4 4 2 . 8 Processor 15 | . . . . 4 7 12 10 17 21 21 21 19 19 13 17 12 3 18 Hackware 2 | . . . . 1 . . . 3 5 5 5 8 9 8 8 4 . . Artifact 1 | . . . . . . . . . . . . . . . . 3 9 . Energy Cannon 2 | . . . . . . . . . . . . . . . . 1 1 7 Slashing Weapon 2 | . . . . . 3 11 9 5 5 5 5 4 4 4 3 . . . Piercing Weapon 2 | . . . . . . . 1 5 5 5 4 4 4 4 3 1 7 1 Naked Turns 36 | . 36 . . . . . . . . . . . . . . . . . Heaviest Build 52 | . 3 5 5 8 6 12 14 22 21 21 21 21 25 37 39 45 45 52 Greatest Support 60 | 3 8 12 12 17 15 15 17 30 37 39 46 37 45 45 47 60 60 60 Greatest Overweight (x) 4 | . . . . . . 1 . . . . . . . . . 4 . . Average Overweight (x) . | . . . . . . . . . . . . . . . . . . . Largest Inventory Capacity 14 | 5 5 5 5 5 5 5 5 10 10 10 10 10 10 10 10 14 9 14 Average Capacity 10 | 5 5 5 5 5 5 5 5 6 10 10 10 10 10 10 10 10 9 13 Most Carried 14 | . 3 5 5 5 5 5 5 9 10 10 10 10 10 10 10 10 9 14 Average Carried 9 | . 2 4 5 4 5 5 4 6 9 10 9 9 9 9 9 9 8 11 Final Capacity 14 | 5 5 5 5 5 5 5 5 10 10 10 10 10 10 10 10 9 9 14 Final Carried 13 | . 3 5 5 5 5 5 5 9 10 10 10 9 10 9 10 9 9 13 Class Distribution -------------------- 41% | Scavenger-Scout 38% | Alien-Sigix 5% | Scavenger-Sprinter 4% | Mutant 3% | Sprinter Dominant Class ---------------- Mutant | -10/Materials Sprinter | -9/Materials Sprinter | -9/Mines Sprinter | -8/Materials Sprinter | -7/Factory Scavenger-Sprinter | -7/DSF Scavenger-Sprinter | -6/Factory Scavenger-Scout | -5/Factory Scavenger-Scout | -4/Factory Scavenger-Scout | -4/Waste Scavenger-Scout | -4/Factory Scavenger-Scout | -3/Research Scavenger-Mutant | -3/DSF Scavenger-Scout | -2/Research Scavenger-Scout | -2/Quarantine Scavenger-Scout | -2/Section 7 Alien-Sigix | -1/Access Alien-Sigix | -1/Command Resources | -11 -10 -9 -9 -8 -7 -7 -6 -5 -4 -4 -4 -3 -3 -2 -2 -2 -1 -1 ----------- Run | Jun Mat Mat Min Mat Fac DSF Fac Fac Fac Was Fac Res DSF Res Qua Sec Acc Com Matter Collected 1627 | 190 . 150 . 48 . 78 119 145 55 25 140 . . 40 60 186 . 391 Remotely . | . . . . . . . . . . . . . . . . . . . Salvage Created 9619 | . 19 59 . 118 . 78 132 321 46 82 539 . . 158 205 1056 . 6806 Parts 436 | . 6 4 . 21 . 12 5 18 3 4 16 . . 2 5 35 . 305 Haulers Intercepted 2 | . . . . . . . 1 1 . . . . . . . . . . Recyclers Shooed 3 | . . . . . . . . . . . 2 . . . . . . 1 Parts Field Recycled . | . . . . . . . . . . . . . . . . . . . Retrieved Matter . | . . . . . . . . . . . . . . . . . . . Parts Self-Destructed . | . . . . . . . . . . . . . . . . . . . Prevented . | . . . . . . . . . . . . . . . . . . . Kills | -11 -10 -9 -9 -8 -7 -7 -6 -5 -4 -4 -4 -3 -3 -2 -2 -2 -1 -1 ------- Run | Jun Mat Mat Min Mat Fac DSF Fac Fac Fac Was Fac Res DSF Res Qua Sec Acc Com Combat Hostiles Destroyed 313 | . 3 4 . 9 . 4 . . . . 9 . . . . 15 . 269 Melee 9 | . . . . . . 4 . . . . . . . . . 4 . 1 Cannons 98 | . . . . . . . . . . . . . . . . 11 . 87 AOE 206 | . 3 4 . 9 . . . . . . 9 . . . . . . 181 Classes Destroyed 26 | . 1 1 . 2 . . 2 1 . . 1 . . . . 4 . 14 Worker 12 | . . . . . . . . . . . . . . . . . . 12 Builder 2 | . . . . . . . 1 . . . 1 . . . . . . . Hauler 2 | . . . . . . . 1 1 . . . . . . . . . . Recycler 11 | . . 1 . 1 . . . 1 . . 3 . . 1 1 . . 3 Carrier 18 | . . . . . . . . . . . . . . . . . . 18 Operator 4 | . . . . 1 . . . 2 . . . . . . . . . 1 Drone 2 | . . . . . . . . . . . . . . . . . . 2 Watcher 8 | . . . . . . . . 1 1 . . . . . 1 . . 5 Swarmer 70 | . 3 4 . 6 . . . . . . 5 . . . . 4 . 48 Cutter 13 | . . . . 3 . 4 . . . . . . . . . . . 6 Saboteur 6 | . . . . . . . . . . . . . . . . . . 6 Grunt 70 | . . . . . . . . . . . 4 . . . . . . 66 Brawler 14 | . . . . . . . . . . . . . . . . . . 14 Duelist 16 | . . . . . . . . . . . . . . . . . . 16 Protector 9 | . . . . . . . . . . . . . . . . . . 9 Researcher 1 | . . . . . . . . . . . . . . . . 1 . . Sentry 4 | . . . . . . . . . . . . . . . . . . 4 Demolisher 6 | . . . . . . . . . . . . . . . . . . 6 Specialist 17 | . . . . . . . . . . . . . . . . . . 17 Hunter 38 | . . . . . . . . . . . . . . . . 5 . 33 Programmer 38 | . . . . . . . . . . . . . . . . 2 . 36 Heavy 1 | . . . . . . . . . . . . . . . . . . 1 Behemoth 1 | . . . . . . . . . . . . . . . . . . 1 Striker 5 | . . . . . . . . . . . . . . . . 4 . 1 Executioner 1 | . . . . . . . . . . . . . . . . . . 1 Alpha 7 2 | . . . . . . . . . . . . . . . . . . 2 Wasp 3 | . . . . . . . . . . 3 . . . . . . . . Best Kill Streak 195 | . 3 5 . 6 . 2 1 2 1 . 12 . . 1 1 11 . 195 Combat Bots Only 175 | . 3 4 . 5 . 2 . . . . 9 . . . . 11 . 175 Max Kills in Single Turn 192 | . 3 2 . 4 . 1 1 1 1 1 6 . . 1 1 3 . 192 Gunslinging . | . . . . . . . . . . . . . . . . . . . Exploded 172 | . 3 2 . 4 . . . . . . 3 . . . . . . 172 Melee 1 | . . . . . . 1 . . . . . . . . . 1 . 1 Uniques/NPCs Destroyed . | . . . . . . . . . . . . . . . . . . . Combat | -11 -10 -9 -9 -8 -7 -7 -6 -5 -4 -4 -4 -3 -3 -2 -2 -2 -1 -1 -------- Run | Jun Mat Mat Min Mat Fac DSF Fac Fac Fac Was Fac Res DSF Res Qua Sec Acc Com Damage Taken 8821 | . 62 101 . 521 . 444 95 180 339 55 210 . 405 . 1063 1760 . 3586 Core 2958 | . 52 50 . 145 . 115 57 25 103 55 39 . 59 . 342 590 . 1326 Absorbed by Shields 72 | . . . . . . . . . . . . . 43 . . . . 29 Redirected to Shielding 11 | . . . . . . . . 11 . . . . . . . . . . Regen/Repaired (Parts) 69 | . . . . . . . . . . 69 . . . . . . . . Core Remaining (%) 74 | 100 79 . 87 73 . 83 93 97 . . 82 . 95 . . 17 . 17 Volleys Fired 131 | . 3 4 . 3 . . . . . . 3 . . . . 15 1 102 Largest 2 | . 1 1 . 1 . . . . . . 1 . . . . 2 1 1 Hottest 200 | . 30 30 . 30 . . . . . . 43 . . . . 200 180 180 Shots Fired 137 | . 3 4 . 3 . . . . . . 3 . . . . 21 1 102 Gun 12 | . . . . . . . . . . . . . . . . 12 . . Cannon 103 | . . . . . . . . . . . . . . . . 9 1 93 Launcher 22 | . 3 4 . 3 . . . . . . 3 . . . . . . 9 Special . | . . . . . . . . . . . . . . . . . . . Kinetic . | . . . . . . . . . . . . . . . . . . . Thermal 1 | . . . . . . . . . . . . . . . . . . 1 Explosive 21 | . 3 4 . 3 . . . . . . 3 . . . . . . 8 Electromagnetic . | . . . . . . . . . . . . . . . . . . . Slashing 115 | . . . . . . . . . . . . . . . . 21 1 93 Robot Hit Streak 17 | . 3 . . 1 . . . . . . . . . . . 7 . 17 Robot Miss Streak 10 | . . . . 1 . . . . . . 3 . . . . 8 . 10 Penetration Max 1 | . . . . . . . . . . . . . . . . 1 . 1 Secondary Targets . | . . . . . . . . . . . . . . . . . . . Shots Hit Robots 157 | . 3 2 . 4 . 7 10 6 7 5 3 . . 1 6 14 . 89 Core Hits 472 | . 4 7 . 16 . 4 2 5 2 2 18 . . . 2 32 2 376 Critical Kills . | . . . . . . . . . . . . . . . . . . . Critical Parts Destroyed . | . . . . . . . . . . . . . . . . . . . Critical Strikes 20 | . . . . . . . 1 . . . . . . . . 4 . 15 Sever 17 | . . . . . . . 1 . . . . . . . . 1 . 15 Impale 3 | . . . . . . . . . . . . . . . . 3 . . Melee Attacks 172 | . . 2 . 5 . 11 14 19 26 5 7 1 1 2 33 24 13 9 Impact 7 | . . 2 . 5 . . . . . . . . . . . . . . Slashing 50 | . . . . . . 11 14 5 10 . . . . . 10 . . . Piercing 115 | . . . . . . . . 14 16 5 7 1 1 2 23 24 13 9 Sneak Attacks 25 | . . 2 . . . . 3 2 3 5 1 . . 1 3 1 . 4 Combat Hostiles . | . . . . . . . . . . . . . . . . . . . Follow-up Attacks 4 | . . . . . . 1 1 . 1 . . . . . 1 . . . Damage Inflicted 176805 | . 214 410 . 539 . 169 326 316 287 331 1744 . . 71 376 3346 253 168423 Guns . | . . . . . . . . . . . . . . . . . . . Cannons 20737 | . . . . . . . . . . . . . . . . 2871 . 17866 Explosions 152507 | . 214 290 . 477 . . . . . . 1590 . . . . . 253 149683 Melee 3066 | . . 120 . 62 . 169 326 316 287 331 154 . . 71 376 371 . 483 Ramming 495 | . . . . . . . . . . . . . . . . 104 . 391 Kinetic . | . . . . . . . . . . . . . . . . . . . Thermal 147828 | . . . . . . . . . . . . . . . . . . 147828 Explosive 4679 | . 214 290 . 477 . . . . . . 1590 . . . . . 253 1855 Electromagnetic . | . . . . . . . . . . . . . . . . . . . Impact 182 | . . 120 . 62 . . . . . . . . . . . . . . Slashing 21354 | . . . . . . 169 326 32 90 . . . . . . 2871 . 17866 Piercing 2267 | . . . . . . . . 284 197 331 154 . . 71 376 371 . 483 Highest Corruption 13 | . 2 . . . . 3 . . . . 1 . . . 2 3 2 13 Average Corruption 3 | . 2 . . . . 3 . . . . 1 . . . 1 2 2 4 Corruption Purged . | . . . . . . . . . . . . . . . . . . . Corruption Blocked . | . . . . . . . . . . . . . . . . . . . Effects 42 | . . . . . . . . . . . . . . . 3 7 . 32 Message Errors 6 | . . . . . . . . . . . . . . . 1 1 . 4 Matter Fused 11 | . . . . . . . . . . . . . . . . 2 . 9 Heat Flow Errors 6 | . . . . . . . . . . . . . . . . 2 . 4 Energy Discharges 5 | . . . . . . . . . . . . . . . . 1 . 4 Data Loss (minor) 6 | . . . . . . . . . . . . . . . 1 . . 5 Data Loss (major) 2 | . . . . . . . . . . . . . . . 1 . . 1 Misfires 1 | . . . . . . . . . . . . . . . . . . 1 Alerts 2 | . . . . . . . . . . . . . . . . 1 . 1 Misdirections 2 | . . . . . . . . . . . . . . . . . . 2 Weapon Failures 1 | . . . . . . . . . . . . . . . . . . 1 Overload Shots . | . . . . . . . . . . . . . . . . . . . Overflow Damage 10936 | . 21 76 . . . . 38 1 26 40 170 . . 41 85 116 . 10322 Projectiles 370 | . . . . . . . . . . . . . . . . 116 . 254 Explosions 10094 | . 21 16 . . . . . . . . 140 . . . . . . 9917 Melee 472 | . . 60 . . . . 38 1 26 40 30 . . 41 85 . . 151 Knockbacks 5 | . . . . . . . . . . . . . . . . 1 . 4 Impact 5 | . . . . . . . . . . . . . . . . 1 . 4 Kinetic . | . . . . . . . . . . . . . . . . . . . Secondary . | . . . . . . . . . . . . . . . . . . . Self-Inflicted Damage 160 | . 48 . . 76 . . . . . . . . . . . . . 36 Shots 4 | . 2 . . 2 . . . . . . . . . . . . . . Rammed . | . . . . . . . . . . . . . . . . . . . Targets Rammed 16 | . . . . . . . . . . . . . . . . 3 . 13 Kicked 16 | . . . . . . . . . . . . . . . . 3 . 13 Crushed . | . . . . . . . . . . . . . . . . . . . Highest Temperature 181 | . 5 . . 16 . . . 52 9 . 9 . . . . 181 . 147 Average Temperature 32 | . 5 . . 8 . . . 26 5 . 6 . . . . 83 . 44 Received Heat Transfer 621 | . 6 15 . 135 . . . 36 39 . 9 . 108 . 9 45 . 219 Siege Activations . | . . . . . . . . . . . . . . . . . . . Robots Corrupted . | . . . . . . . . . . . . . . . . . . . Combat Hostiles . | . . . . . . . . . . . . . . . . . . . Parts Fried . | . . . . . . . . . . . . . . . . . . . Impact Corruptions 7 | . . 3 . . . . . . . . . . . . . . . 4 Robots Melted . | . . . . . . . . . . . . . . . . . . . Combat Hostiles . | . . . . . . . . . . . . . . . . . . . Parts Melted . | . . . . . . . . . . . . . . . . . . . Heat Transferred 540 | . . . . . . . . . . . . . . . . . . 540 Parts Sabotaged . | . . . . . . . . . . . . . . . . . . . Parts Stolen . | . . . . . . . . . . . . . . . . . . . Parts Stripped . | . . . . . . . . . . . . . . . . . . . Power Chain Reactions . | . . . . . . . . . . . . . . . . . . . Missiles Intercepted . | . . . . . . . . . . . . . . . . . . . Alert | -11 -10 -9 -9 -8 -7 -7 -6 -5 -4 -4 -4 -3 -3 -2 -2 -2 -1 -1 ------- Run | Jun Mat Mat Min Mat Fac DSF Fac Fac Fac Was Fac Res DSF Res Qua Sec Acc Com Peak Influence 2003 | . 131 302 117 515 229 220 323 540 698 308 816 430 324 168 417 2003 1240 1782 Initial 1201 | . . 55 117 45 229 160 115 153 264 203 215 428 324 160 94 144 1201 772 Average 554 | . 73 153 117 207 229 178 277 271 395 244 535 429 306 162 258 579 1176 1267 Maximum Alert Level 5 | . . 1 . 2 1 1 1 2 2 1 3 2 1 . 2 5 4 5 Low Security (%) 16 | 100 100 75 100 59 . 80 14 18 . . . . . 100 21 24 . . Level 1 34 | . . 24 . 28 100 19 85 71 57 100 41 . 100 . 70 42 . . Level 2 10 | . . . . 11 . . . 10 42 . 13 100 . . 8 14 . 3 Level 3 3 | . . . . . . . . . . . 44 . . . . . . 6 Level 4 12 | . . . . . . . . . . . . . . . . . 100 28 Level 5 19 | . . . . . . . . . . . . . . . . . . 60 High Security . | . . . . . . . . . . . . . . . . . . . Max Security 2 | . . . . . . . . . . . . . . . . 19 . . Squads Dispatched 53 | . 2 1 . 5 . 3 2 2 5 . 3 . 1 . 3 16 5 5 Investigation 12 | . 1 . . 3 . . . 1 1 . 3 . . . 2 . 1 . Extermination 2 | . . . . . . . . . . . . . . . . 1 . 1 Reinforcement 22 | . 1 1 . 2 . 3 1 1 4 . . . 1 . 1 3 2 2 Assault 15 | . . . . . . . 1 . . . . . . . . 12 . 2 Garrison 2 | . . . . . . . . . . . . . . . . . 2 . Intercept . | . . . . . . . . . . . . . . . . . . . Searches Triggered . | . . . . . . . . . . . . . . . . . . . Construction Impeded . | . . . . . . . . . . . . . . . . . . . Haulers Reinforced 1 | . . . . . . . 1 . . . . . . . . . . . Active Scanning Responses . | . . . . . . . . . . . . . . . . . . . Cargo Convoy Interrupts . | . . . . . . . . . . . . . . . . . . . Stealth | -11 -10 -9 -9 -8 -7 -7 -6 -5 -4 -4 -4 -3 -3 -2 -2 -2 -1 -1 --------- Run | Jun Mat Mat Min Mat Fac DSF Fac Fac Fac Was Fac Res DSF Res Qua Sec Acc Com Distress Signals 13 | . . . . 1 . . . . 1 . 1 . . . . 5 1 4 Communications Jammed . | . . . . . . . . . . . . . . . . . . . Distress Signals . | . . . . . . . . . . . . . . . . . . . Times Spotted 428 | . 7 16 . 28 . 9 6 21 27 5 14 . 3 . 24 60 . 208 Peak Tracking Total 59 | . 5 11 . 14 . 5 5 16 16 5 6 . 3 . 8 21 4 59 Tactical Retreats 52 | . . 1 . 4 . 1 1 4 7 . 2 . . . 7 8 1 16 Traps | -11 -10 -9 -9 -8 -7 -7 -6 -5 -4 -4 -4 -3 -3 -2 -2 -2 -1 -1 ------- Run | Jun Mat Mat Min Mat Fac DSF Fac Fac Fac Was Fac Res DSF Res Qua Sec Acc Com Traps Triggered 9 | . 1 . . . . . . . 1 . 1 . 2 . 1 1 1 1 Indirectly . | . . . . . . . . . . . . . . . . . . . Trap Hack Attempts . | . . . . . . . . . . . . . . . . . . . Triggered . | . . . . . . . . . . . . . . . . . . . Disarmed . | . . . . . . . . . . . . . . . . . . . Reprogrammed . | . . . . . . . . . . . . . . . . . . . Reused . | . . . . . . . . . . . . . . . . . . . Traps Extracted . | . . . . . . . . . . . . . . . . . . . Installed . | . . . . . . . . . . . . . . . . . . . Triggered . | . . . . . . . . . . . . . . . . . . . Machines | -11 -10 -9 -9 -8 -7 -7 -6 -5 -4 -4 -4 -3 -3 -2 -2 -2 -1 -1 ---------- Run | Jun Mat Mat Min Mat Fac DSF Fac Fac Fac Was Fac Res DSF Res Qua Sec Acc Com Machines Disabled 37 | . . 1 . . . . 1 1 . . 10 . . . 5 7 1 11 Max in Single Turn 6 | . . 1 . . . . 1 1 . . 6 . . . 1 1 1 1 Garrison Access 2 | . . . . . . . 1 1 . . . . . . . . . . Machines Repaired . | . . . . . . . . . . . . . . . . . . . Machines Sabotaged . | . . . . . . . . . . . . . . . . . . . Overloaded Fab Kills . | . . . . . . . . . . . . . . . . . . . Hacking | -11 -10 -9 -9 -8 -7 -7 -6 -5 -4 -4 -4 -3 -3 -2 -2 -2 -1 -1 --------- Run | Jun Mat Mat Min Mat Fac DSF Fac Fac Fac Was Fac Res DSF Res Qua Sec Acc Com Machines Accessed 31 | . 1 . . 3 1 . 1 5 3 . 3 2 . . 4 5 2 1 Terminals 30 | . 1 . . 3 1 . 1 4 3 . 3 2 . . 4 5 2 1 Fabricators . | . . . . . . . . . . . . . . . . . . . Repair Stations . | . . . . . . . . . . . . . . . . . . . Recycling Units . | . . . . . . . . . . . . . . . . . . . Scanalyzers . | . . . . . . . . . . . . . . . . . . . Garrison Access 1 | . . . . . . . . 1 . . . . . . . . . . Total Hacks 77 | . 6 . . 12 1 . 1 9 7 . 12 3 . . 11 8 5 2 Successful 29 | . 1 . . 2 1 . 1 4 4 . 3 2 . . 6 4 1 . Failed 48 | . 5 . . 10 . . . 5 3 . 9 1 . . 5 4 4 2 Catastrophic 10 | . 3 . . 2 . . . 2 1 . 1 . . . . . 1 . Database Lockouts . | . . . . . . . . . . . . . . . . . . . Manual 46 | . 6 . . 12 . . . 6 6 . 8 2 . . 5 1 . . Terminals 75 | . 6 . . 12 1 . 1 7 7 . 12 3 . . 11 8 5 2 Fabricators . | . . . . . . . . . . . . . . . . . . . Repair Stations . | . . . . . . . . . . . . . . . . . . . Recycling Units . | . . . . . . . . . . . . . . . . . . . Scanalyzers . | . . . . . . . . . . . . . . . . . . . Garrison Access 2 | . . . . . . . . 2 . . . . . . . . . . Terminal Hacks 13 | . . . . . 1 . 1 . 1 . 1 1 . . 4 3 1 . Robot Analysis 1 | . . . . . . . . . 1 . . . . . . . . . Open Door 4 | . . . . . . . . . . . . . . . 1 2 1 . Open DSF 3 | . . . . . 1 . 1 . . . . 1 . . . . . . Level Access Points 1 | . . . . . . . . . . . 1 . . . . . . . Recall Investigation 1 | . . . . . . . . . . . . . . . 1 . . . Zone Layout 3 | . . . . . . . . . . . . . . . 2 1 . . Fabricator Hacks . | . . . . . . . . . . . . . . . . . . . Repair Station Hacks . | . . . . . . . . . . . . . . . . . . . Recycling Unit Hacks . | . . . . . . . . . . . . . . . . . . . Scanalyzer . | . . . . . . . . . . . . . . . . . . . Garrison Access Hacks 1 | . . . . . . . . 1 . . . . . . . . . . Seal Access 1 | . . . . . . . . 1 . . . . . . . . . . Unauthorized Hacks 15 | . 1 . . 2 . . . 3 3 . 2 1 . . 2 1 . . Terminals 15 | . 1 . . 2 . . . 3 3 . 2 1 . . 2 1 . . Assimilate 1 | . . . . . . . . . . . . . . . 1 . . . Botnet 14 | . 1 . . 2 . . . 3 3 . 2 1 . . 1 1 . . Fabricators . | . . . . . . . . . . . . . . . . . . . Repair Stations . | . . . . . . . . . . . . . . . . . . . Recycling Units . | . . . . . . . . . . . . . . . . . . . Scanalyzers . | . . . . . . . . . . . . . . . . . . . Garrison Access . | . . . . . . . . . . . . . . . . . . . Data Cores Recovered 1 | . . . . . . . . 1 . . . . . . . . . . Used . | . . . . . . . . . . . . . . . . . . . Hacking Detections 29 | . 1 . . 3 1 . 1 5 3 . 3 1 . . 4 5 1 1 Full Trace Events 11 | . 1 . . 3 . . . 1 1 . 3 . . . 1 . 1 . Feedback Events 1 | . . . . . . . . . . . 1 . . . . . . . Corruption 1 | . . . . . . . . . . . 1 . . . . . . . Feedback Blocked . | . . . . . . . . . . . . . . . . . . . Robot Schematics Acquired . | . . . . . . . . . . . . . . . . . . . Robots Built . | . . . . . . . . . . . . . . . . . . . Authchips . | . . . . . . . . . . . . . . . . . . . Time . | . . . . . . . . . . . . . . . . . . . Total Robot Build Rating . | . . . . . . . . . . . . . . . . . . . Part Schematics Acquired 4 | . . . . . . . . . . . . . . . . 4 . . Parts Built . | . . . . . . . . . . . . . . . . . . . Authchips . | . . . . . . . . . . . . . . . . . . . Time . | . . . . . . . . . . . . . . . . . . . Total Part Build Rating . | . . . . . . . . . . . . . . . . . . . Parts Repaired . | . . . . . . . . . . . . . . . . . . . Time . | . . . . . . . . . . . . . . . . . . . Parts Recycled . | . . . . . . . . . . . . . . . . . . . Recycled Matter . | . . . . . . . . . . . . . . . . . . . Retrieved Matter . | . . . . . . . . . . . . . . . . . . . Retrieved Components . | . . . . . . . . . . . . . . . . . . . Parts Scanalyzed . | . . . . . . . . . . . . . . . . . . . Part Schematics Acquired . | . . . . . . . . . . . . . . . . . . . Parts Damaged . | . . . . . . . . . . . . . . . . . . . Bothacking | -11 -10 -9 -9 -8 -7 -7 -6 -5 -4 -4 -4 -3 -3 -2 -2 -2 -1 -1 ------------ Run | Jun Mat Mat Min Mat Fac DSF Fac Fac Fac Was Fac Res DSF Res Qua Sec Acc Com Used RIF Installer . | . . . . . . . . . . . . . . . . . . . Robots Hacked . | . . . . . . . . . . . . . . . . . . . Non-combat . | . . . . . . . . . . . . . . . . . . . Combat . | . . . . . . . . . . . . . . . . . . . Robot Hacks Applied . | . . . . . . . . . . . . . . . . . . . Relay Couplers Released 2 | . . . . . . . 2 . . . . . . . . . . . Machine Destruction 2 | . . . . . . . 2 . . . . . . . . . . . Fabnet Peak Effective % . | . . . . . . . . . . . . . . . . . . . Robots Rewired . | . . . . . . . . . . . . . . . . . . . Allies Hacked . | . . . . . . . . . . . . . . . . . . . Hacks Repelled . | . . . . . . . . . . . . . . . . . . . Allies | -11 -10 -9 -9 -8 -7 -7 -6 -5 -4 -4 -4 -3 -3 -2 -2 -2 -1 -1 -------- Run | Jun Mat Mat Min Mat Fac DSF Fac Fac Fac Was Fac Res DSF Res Qua Sec Acc Com Total Allies 76 | . . . . . . . . . . 18 . . . . 1 . 12 45 Largest Group 18 | . . . . . . . . . . 18 . . . . 1 . 8 12 Highest-Rated Group 656 | . . . . . . . . . . 656 . . . . 45 . 113 175 Highest-Rated Ally 50 | . . . . . . . . . . 50 . . . . 45 . 15 15 Total Orders 1 | . . . . . . . . . . . . . . . 1 . . . STAY 1 | . . . . . . . . . . . . . . . 1 . . . Ally Attacks 183 | . . . . . . . . . . 147 . . . . . . 27 9 Total Damage 6761 | . . . . . . . . . . 6114 . . . . . . 440 207 Kills 10 | . . . . . . . . . . 10 . . . . . . . . Allies Corrupted . | . . . . . . . . . . . . . . . . . . . Allies Melted . | . . . . . . . . . . . . . . . . . . . Intel | -11 -10 -9 -9 -8 -7 -7 -6 -5 -4 -4 -4 -3 -3 -2 -2 -2 -1 -1 ------- Run | Jun Mat Mat Min Mat Fac DSF Fac Fac Fac Was Fac Res DSF Res Qua Sec Acc Com Robot Analysis Total 1 | . . . . . . . . . 1 . . . . . . . . . Derelict Logs Recovered . | . . . . . . . . . . . . . . . . . . . Drone Launches . | . . . . . . . . . . . . . . . . . . . Drone Recoveries . | . . . . . . . . . . . . . . . . . . . Exploration | -11 -10 -9 -9 -8 -7 -7 -6 -5 -4 -4 -4 -3 -3 -2 -2 -2 -1 -1 ------------- Run | Jun Mat Mat Min Mat Fac DSF Fac Fac Fac Was Fac Res DSF Res Qua Sec Acc Com Turns Passed 4521 | 18 122 77 2 129 12 77 199 280 434 101 191 47 47 43 481 684 144 1433 Spaces Moved 9127 | 36 250 138 7 278 36 85 510 772 1175 191 516 149 105 88 1191 1317 276 2007 Core 136 | 36 87 . . . . . . . . . . . . . . 13 . . Treads . | . . . . . . . . . . . . . . . . . . . Legs 2484 | . . . . . . . . . . . . . . . . 324 276 1884 Wheels . | . . . . . . . . . . . . . . . . . . . Hover . | . . . . . . . . . . . . . . . . . . . Flight 6264 | . 163 138 7 278 36 85 510 772 1175 191 516 149 105 88 1191 860 . . Fastest Speed 19 | 50 37 32 32 28 28 27 24 21 25 26 23 29 27 27 27 19 30 30 Average Speed 29 | 50 41 33 32 30 28 30 26 26 28 27 28 29 32 27 29 32 30 30 Slowest Speed 250 | 50 50 37 32 34 28 117 27 32 32 28 32 29 34 27 40 250 30 30 Overloaded Moves . | . . . . . . . . . . . . . . . . . . . Propulsion Burnouts . | . . . . . . . . . . . . . . . . . . . Robots Hopped 44 | . 7 1 . 5 . 1 4 1 12 . . . 2 . 8 3 . . Cave-ins Triggered 1 | . . . . . . . . . . . . . . . . . . 1 Teleports 4 | . . . . . . . . . . . . . . . 1 3 . . Microwarps 16 | . . . . . . . . . . . . . . . . 8 . 8 Exploration Rate (%) 36 | 3 54 24 6 57 2 46 16 29 40 90 18 4 90 2 90 71 8 52 Regions Visited 18 Branch Regions 4 Pre-discovered Areas . | . . . . . . . . . . . . . . . . . . . Known Exits Taken 5 | . . . . . 1 . . . . . 1 1 . 1 1 . . . Unknown Exits Taken 9 | 1 1 1 1 1 . . 1 1 . . . . . . . 1 1 . Scrap Searched . | . . . . . . . . . . . . . . . . . . . Spaces Dug 137 | . . . . . . . 1 8 12 . 4 1 1 1 12 16 8 73 Terrain Destroyed 1470 | . 21 18 . 28 . . 1 8 12 . 44 1 1 1 12 22 16 1285 Melee 62 | . . . . . . . 1 8 12 . 4 1 1 1 12 10 8 4 Projectile 432 | . . . . . . . . . . . . . . . . 12 5 415 AOE 976 | . 21 18 . 28 . . . . . . 40 . . . . . 3 866 Terrain Rammed 1 | . . . . . . . . . . . . . . . . . . 1 Walls Destroyed . | . . . . . . . . . . . . . . . . . . . Machines Disabled 1 | . . . . . . . . . . . . . . . . . . 1 Actions | -11 -10 -9 -9 -8 -7 -7 -6 -5 -4 -4 -4 -3 -3 -2 -2 -2 -1 -1 --------- Run | Jun Mat Mat Min Mat Fac DSF Fac Fac Fac Was Fac Res DSF Res Qua Sec Acc Com Total 10265 | 35 256 159 6 301 36 108 544 816 1224 230 544 150 114 103 1264 1420 315 2640 Wait 814 | . 2 7 . 4 . 2 1 16 24 32 1 . . 12 29 108 14 562 Move 8794 | 35 235 135 6 267 35 82 501 769 1151 190 515 148 100 87 1175 1198 275 1890 Hop 43 | . 7 1 . 5 . 1 4 1 12 . . . 2 . 7 3 . . Pick Up 45 | . 4 4 . 1 . . 4 2 5 . 4 . 1 . 5 7 1 7 Fast Attach 98 | . 2 3 . 10 . 12 9 4 1 2 4 . 1 1 6 21 5 17 Attach 35 | . 1 1 . 2 . . 1 . 2 . 1 1 . 1 3 13 2 7 Detach 34 | . 1 . . 1 . . 1 2 . . . . . . 4 11 . 14 Swap 27 | . . . . 2 1 . 2 3 2 . 5 . 2 . . 8 . 2 Drop 60 | . 1 2 . 1 . 1 8 3 4 1 4 . 1 . 7 9 4 14 Fire 131 | . 3 4 . 3 . . . . . . 3 . . . . 15 1 102 Melee 159 | . . 2 . 5 . 10 13 16 23 5 7 1 1 2 28 24 13 9 Ram 2 | . . . . . . . . . . . . . . . . . . 2 Kick 16 | . . . . . . . . . . . . . . . . 3 . 13 Crush . | . . . . . . . . . . . . . . . . . . . Escape Stasis 7 | . . . . . . . . . . . . . 6 . . . . 1 Rewire . | . . . . . . . . . . . . . . . . . . . Trap . | . . . . . . . . . . . . . . . . . . . Miscellaneous . | . . . . . . . . . . . . . . . . . . . Route ------- -11/Junkyard -10/Materials (discovered 2 exits: [*Mat] / [*Min]) -9/Materials (discovered 2 exits: [*Min x2]) -9/Mines -8/Materials -7/Factory -7/DSF -6/Factory -5/Factory -4/Factory (discovered 3 exits: *Upp x2 / [*Arm]) -4/Waste -4/Factory (discovered 5 exits: *Res x4 / *Upp) -3/Research (discovered 2 exits: *Tes / DSF) -3/DSF -2/Research -2/Quarantine -2/Section 7 -1/Access -1/Command To Fleet Rendezvous History --------- Turn | Location | Event 5 | -11/Junkyard | Discovered new exit (range 16) 19 | -11/Junkyard | Entered Materials 111 | -10/Materials | Discovered new exit (range 6) 139 | -10/Materials | Discovered new exit (range 7) 141 | -10/Materials | Entered another Materials area 141 | -9/Materials | Evolved 2 slots: Propulsion x1, Utility x1 200 | -9/Materials | Discovered new exit (range 6) 216 | -9/Materials | Discovered new exit (range 7) 218 | -9/Materials | Entered Mines 218 | -9/Mines | Discovered new exit (range 6) 220 | -9/Mines | Entered Materials 220 | -8/Materials | Evolved 2 slots: Propulsion x1, Utility x1 337 | -8/Materials | Lost 4 parts (1p3n) 337 | -8/Materials | Discovered new exit (range 15) 349 | -8/Materials | Entered Factory 349 | -7/Factory | Evolved 2 slots: Propulsion x1, Utility x1 361 | -7/Factory | Identified exit to DSF 361 | -7/Factory | Entered DSF 384 | -7/DSF | Additional patrols routed to DSF 409 | -7/DSF | Discovered new exit (range 16) 438 | -7/DSF | Entered Factory 438 | -6/Factory | Evolved 2 slots: Propulsion x1, Utility x1 464 | -6/Factory | Lost 7 parts (4n3u) 543 | -6/Factory | Found Prototype Launcher 543 | -6/Factory | Identified Scatter Rocket Array 633 | -6/Factory | Discovered new exit (range 11) 637 | -6/Factory | Entered another Factory area 637 | -5/Factory | Evolved 2 slots: Propulsion x1, Utility x1 912 | -5/Factory | Discovered new exit (range 14) 917 | -5/Factory | Entered another Factory area 917 | -4/Factory | Evolved 2 slots: Propulsion x1, Utility x1 972 | -4/Factory | Spotted B-86 Titan 992 | -4/Factory | Discovered new exit (range 3) 993 | -4/Factory | Identified exit to Upper Caves 1096 | -4/Factory | Discovered exit to Upper Caves (range 8) 1112 | -4/Factory | Discovered new exit (range 19) 1208 | -4/Factory | Build established: Scavenger-Scout 1351 | -4/Factory | Sucked down chute 1351 | -4/Factory | Entered Waste 1351 | -4/Waste | Spotted C-40 Crusher 1382 | -4/Waste | Spotted C-40 Crusher 1392 | -4/Waste | Spotted C-40 Crusher 1395 | -4/Waste | Spotted C-40 Crusher 1400 | -4/Waste | Spotted C-40 Crusher 1402 | -4/Waste | Spotted C-40 Crusher 1404 | -4/Waste | Warlord forces began an assault 1407 | -4/Waste | Allies destroyed C-40 Crusher 1411 | -4/Waste | Allies destroyed C-40 Crusher 1419 | -4/Waste | Allies destroyed C-40 Crusher 1427 | -4/Waste | Allies destroyed C-40 Crusher 1433 | -4/Waste | Allies destroyed C-40 Crusher 1441 | -4/Waste | Allies destroyed C-40 Crusher 1449 | -4/Waste | Discovered new exit (range 11) 1451 | -4/Waste | Identified exit to Factory 1452 | -4/Waste | Entered Factory 1486 | -4/Factory | Discovered exit to Upper Caves (range 20) 1555 | -4/Factory | Destroyed 9 combat bots 1571 | -4/Factory | Identified exit to Research 1643 | -4/Factory | Entered Research 1643 | -3/Research | Evolved 2 slots: Propulsion x1, Utility x1 1677 | -3/Research | Discovered new exit (range 4) 1678 | -3/Research | Identified exit to Testing 1690 | -3/Research | Identified exit to DSF 1690 | -3/Research | Entered DSF 1714 | -3/DSF | Additional patrols routed to DSF 1734 | -3/DSF | Discovered new exit (range 14) 1737 | -3/DSF | Identified exit to Research 1737 | -3/DSF | Entered Research 1737 | -2/Research | Evolved 2 slots: Power x1, Utility x1 1775 | -2/Research | Discovered new exit (range 22) 1780 | -2/Research | Identified exit to Quarantine 1780 | -2/Research | Entered Quarantine 1800 | -2/Quarantine | Discovered new exit (range 22) 1860 | -2/Quarantine | Spotted Alpha 7 1867 | -2/Quarantine | Found Alien Launcher 1925 | -2/Quarantine | Lost 3 parts (1p1n1u) 1968 | -2/Quarantine | Found Alien Artifact 1968 | -2/Quarantine | Identified Core Reset Matrix 1968 | -2/Quarantine | Identified Sigix Terminator 1968 | -2/Quarantine | Used Core Reset Matrix 1972 | -2/Quarantine | Detected hypermatrix surge 1972 | -2/Quarantine | Sensed 13 artifacts in vicinity 1984 | -2/Quarantine | Found Subatomic Replicator 2054 | -2/Quarantine | Found Core Cannon 2116 | -2/Quarantine | Found Transdimensional Reconstructor 2118 | -2/Quarantine | Found Transdimensional Reconstructor 2119 | -2/Quarantine | Found Transdimensional Reconstructor 2119 | -2/Quarantine | Warped through subspace 2232 | -2/Quarantine | Spotted Fortress 2259 | -2/Quarantine | Discovered new exit (range 6) 2261 | -2/Quarantine | Identified exit to Section 7 2261 | -2/Quarantine | Entered Section 7 2262 | -2/Section 7 | Sensed 19 artifacts in vicinity 2262 | -2/Section 7 | Spotted S7 Guard 2277 | -2/Section 7 | Lost 4 parts (3n1u) 2343 | -2/Section 7 | Found Integrated Mediator 2343 | -2/Section 7 | Installed Integrated Mediator, increased core attachment efficiency. 2426 | -2/Section 7 | Warped through subspace 2428 | -2/Section 7 | Spotted S7 Guard 2491 | -2/Section 7 | Found Integrated Dissipator 2491 | -2/Section 7 | Installed Integrated Dissipator, increased core heat dissipation (+20) 2565 | -2/Section 7 | Found Microwarp Drive 2615 | -2/Section 7 | Spotted Executioner 2617 | -2/Section 7 | Spotted Executioner 2619 | -2/Section 7 | Spotted B-99 Colossus 2621 | -2/Section 7 | Spotted Alpha 7 2638 | -2/Section 7 | Used Subatomic Replicator to replicate LRC Storage 2639 | -2/Section 7 | Found LRC Storage 2639 | -2/Section 7 | Installed LRC Storage, increased inventory capacity (+2) 2641 | -2/Section 7 | Installed LRC Storage, increased inventory capacity (+2) 2672 | -2/Section 7 | Warped through subspace 2765 | -2/Section 7 | Lost 5 parts (1p2n2u) 2776 | -2/Section 7 | Integrated with Sigix Exoskeleton 2782 | -2/Section 7 | Spotted Executioner 2782 | -2/Section 7 | Spotted Executioner 2783 | -2/Section 7 | Core integrity fell below 50% 2783 | -2/Section 7 | Spotted Striker 2783 | -2/Section 7 | Spotted Striker 2801 | -2/Section 7 | Found Transdimensional Reconstructor 2803 | -2/Section 7 | Found Transdimensional Reconstructor 2805 | -2/Section 7 | Found Transdimensional Reconstructor 2849 | -2/Section 7 | Spotted Striker 2849 | -2/Section 7 | Spotted Striker 2855 | -2/Section 7 | Found Sigix Shearcannon 2859 | -2/Section 7 | Destroyed Striker 2863 | -2/Section 7 | Destroyed Striker 2869 | -2/Section 7 | Destroyed Striker 2874 | -2/Section 7 | Destroyed Striker 2901 | -2/Section 7 | Destroyed 11 combat bots 2918 | -2/Section 7 | Spotted Executioner 2923 | -2/Section 7 | Sigix Exoskeleton integrity reduced to 80% 2923 | -2/Section 7 | Warped through subspace 2927 | -2/Section 7 | Spotted B-90 Cyclops 2928 | -2/Section 7 | Core integrity fell below 20% 2940 | -2/Section 7 | Discovered new exit (range 16) 2945 | -2/Section 7 | Entered Access 2945 | -1/Access | Evolved 2 slots: Utility x2 2950 | -1/Access | Emitted hypermatrix ping 2953 | -1/Access | Garrison activated, responded to threat 2955 | -1/Access | Assembled emerged from beneath the floor 2962 | -1/Access | Assembled emerged from beneath the floor 3034 | -1/Access | Found Unknown Launcher 3034 | -1/Access | Identified Fusion Bomb Launcher 3043 | -1/Access | Discovered new exit (range 17) 3055 | -1/Access | Build established: Alien-Sigix 3089 | -1/Access | Entered Command 3094 | -1/Command | Emitted hypermatrix ping 3099 | -1/Command | Assembled emerged from beneath the floor 3123 | -1/Command | Assembled emerged from beneath the floor 3202 | -1/Command | Spotted B-99 Colossus 3230 | -1/Command | Discovered new exit (range 16) 3258 | -1/Command | Destroyed 9 combat bots 3281 | -1/Command | Found Unknown Device 3281 | -1/Command | Identified Adv. Force Booster 3302 | -1/Command | Spotted B-99 Colossus 3345 | -1/Command | Destroyed B-99 Colossus 3355 | -1/Command | Found Prototype Processor 3355 | -1/Command | Identified Exp. Core Analyzer 3360 | -1/Command | Found Exp. Core Analyzer 3364 | -1/Command | Found Exp. Core Analyzer 3367 | -1/Command | First assault squad dispatched 3452 | -1/Command | Spotted Alpha 7 3468 | -1/Command | Destroyed Alpha 7 3519 | -1/Command | Spotted Striker 3519 | -1/Command | Spotted Alpha 7 3547 | -1/Command | Destroyed Striker 3572 | -1/Command | Spotted Executioner 3574 | -1/Command | Destroyed Executioner 3578 | -1/Command | Destroyed Alpha 7 3607 | -1/Command | Assembled emerged from beneath the floor 3629 | -1/Command | Assembled emerged from beneath the floor 3665 | -1/Command | Assembled emerged from beneath the floor 3675 | -1/Command | Assembled emerged from beneath the floor 3771 | -1/Command | Fired Sigix Terminator 3771 | -1/Command | High security lockdown imminent 3771 | -1/Command | MAIN.C activated Command garrisons 3792 | -1/Command | Destroyed 175 combat bots 3969 | -1/Command | Destroyed 10 combat bots 4460 | -1/Command | Destroyed 39 combat bots 4484 | -1/Command | Spotted Executioner 4485 | -1/Command | Spotted Striker 4485 | -1/Command | Spotted Executioner 4486 | -1/Command | Spotted Executioner 4487 | -1/Command | Spotted M Guard 4488 | -1/Command | Spotted M Guard 4490 | -1/Command | Sigix Exoskeleton integrity reduced to 60% 4491 | -1/Command | Spotted Combat Programmer 4491 | -1/Command | Spotted Combat Programmer 4492 | -1/Command | System corruption reached 10% 4497 | -1/Command | Core integrity fell below 50% 4501 | -1/Command | Crushed by falling debris 4518 | -1/Command | Spotted B-99 Colossus 4518 | -1/Command | Spotted B-99 Colossus 4520 | -1/Command | Sigix Exoskeleton integrity reduced to 40% 4520 | -1/Command | Core integrity fell below 20% 4522 | *** | Heading to fleet! Last Messages --------------- 04517_ Slug penetrates Wall. 04518_ Penetrated by Slug. 04518_ Microwarped (distance 13). 04519_ System corrupted: Component data lost. 04519_ Slug penetrates Access Shell. 04519_ Penetrated by Slug. 04519_ Slug penetrates Access Shell. 04519_ Slug penetrates Wall. 04519_ Slug penetrates Access Shell. 04519_ Slug penetrates B-99 Colossus. 04519_ Kicked Access Shell. 04519_ Access Shell breached. 04519_ Destabilizing: System interference. 04519_ Exp. Core Analyzer temporarily disabled. 04519_ Destabilizing: System corrupted (+2). 04520_ Exo-853F: "Integrity reduced to 40%, advise evasive maneuvers to regroup with unit." 04522_ Penetrated by Slug. 04522_ Slug penetrates Access Shell. [Achievement: Rambo] Map ----- +----------------------------------------------------+ | ## !!! # "" ### ############## | | ## !!! # """" ### ############## | | ### ! """" + ########## | | ### ###### * = "" ### ########## | | ### ###* = # ### ########## | | #### ### # ### + | | + ### #+########### ########## | | + ### ########### ########## | | + ###! # ########### ########## | | + ### # ########### ############## | | #### ##### # ############## | | ?### # # ############## | | ?### # ############## | | ?### ############## | | ??## ############## | | ??# ############## | | ??# " p ############## | | ??? T" ################################### | | ??? ## ## ################################### | | ???# ##d ################################# | | ???# s# # ### ################## | | ??? ss ### ################## | | ???? #ss ### ################## | | ???? "" /s/ ### """""" ################## | | ??????"" ### ### " " ### ## | | ???????" ### ### g" X" " ### !! # | | ??????? ### ### gg" "" " ### !! # | | ???????? ########## "%c " ### !! # | | ???????? + #### """ " ### + | | ???????? # #### g^ % ### # | | ???????? + #### BB BB#######+###+##### | | ???????? # #### BB BB###### ###### | | ????????? # ###### ######### ###### | | ????????? # ###### ######## ###### | | ????????? # ####### ######### ###### | | ????????? # ###### p ######## ###### | | ????????? # ####### ######### k ###### | | ???????? # ###### ######## ##+###### | | ????????### ####### ######### # ## | | ????????### ###### ######## # ## | | ?????###### ## #### ######### # ## | | ########### ## ### sp ######### + ## | | ########### ## ####////########## # ## | | ########### ## # ## ########## # ## | | ########### ### # ## ########## ######### | | ########### # # ######### !######## | | ########### #* # ######### ######## | | ########### # !# | | ########### # # ##### ######## | | ########### # # ###### ###### | +----------------------------------------------------+ Best States ------------- Heat Dissipation 161 Energy Generation 63 Energy Capacity 270 Matter Stores 300 Matter Capacity 300 Sight Range 22 Robot Scan Range 18 Terrain Scan Density 10 Corruption Containment 20 Armor Coverage 150 Resistance: KI 50 Resistance: TH 50 Resistance: EX 50 Resistance: EM 50 Resistance: I 50 Resistance: S 50 Resistance: P 50 Weapon Shielding 66 Point Defense Rating 80 Evasion (%) 77 Targeting Accuracy 10 Melee Accuracy 6 Target Analysis 6 Core Analysis 12 Offensive Hacking 20 Item Schematics ----------------- Exp. Hacking Suite | -2/Section 7 | Archive Plasma Lance | -2/Section 7 | Archive Thermal Defense Suite | -2/Section 7 | Archive Exp. Targeting Computer | -2/Section 7 | Archive Robot Schematics ------------------ None Fabricated ------------ Nothing Alien Tech Used ----------------- Core Reset Matrix Transdimensional Reconstructor Integrated Mediator Integrated Dissipator Microwarp Drive Subatomic Replicator LRC Storage Sigix Exoskeleton Sigix Sheargun Sigix Shearcannon Sigix Terminator Achievements -------------- Launcher Specialist Rambo WMD Challenges ------------ None Game ------ Seed HoverTerrabombMount Manual? 0 Play Time 01:43:30 Cumulative 390.9 hours Start 2023.10.27 @ 11:44:52 End 2023.10.27 @ 13:45:52 Sessions 1 Manual Loads 0 Difficulty Rogue Special Mode None Game No. 155 Rogue 139 Adventurer 8 Explorer 8 Win Type 2 Total 32 Types 12/1/12/1/1/2/3/0/0 Lore% 91 Gallery% 89 Achievement% 79 Wizard Run 0 Options --------- ASCII 1 Keyboard 1 Movement Vi Keybinds 0 Fullscreen 2 Font 18/SmallcapsGlow Map View 76x50 Tactical HUD 1 Map Filters NONE Filters NONE Steam 0 RUN: 95a5f7fe-8464-4c85-98b3-959626f69fa4